bitfinex-derivatives/quotes_ETHF0:USTF0_20250712
["timestamp","ask_amount","ask_price","bid_price","bid_amount"]
[1752326383762,3.2078,2932.4,2932.3,28.50971]
[1752326384155,2.1245,2932.9,2932.8,1.2654]
[1752326384461,2.1245,2932.9,2932.8,4.71548]
[1752326384963,4.0428,2932.9,2932.8,4.7155]
[1752326385960,4.0428,2932.9,2932.6,24.41473]
[1752326386158,4.1313,2932.7,2932.5,1.7725]
[1752326386363,4.1313,2932.4,2932.3,30.6605]
[1752326387057,4.81309,2932.4,2932.3,24.9984]
[1752326387259,4.1313,2932.4,2932.3,23.733]
[1752326387459,4.1313,2932.3,2932.2,0.68183]
[1752326387654,4.1313,2932.9,2932.5,1.7725]
[1752326387960,1.2213,2932.0,2931.9,3.0379]
[1752326388158,2.213,2932.0,2931.9,28.41181]
[1752326388360,3.1396,2932.2,2932.1,1.94726]
[1752326388661,4.1313,2932.2,2932.1,1.94726]
[1752326388866,4.1313,2932.2,2932.1,4.65976]
[1752326389164,1.2213,2932.5,2932.4,4.65969]
[1752326389464,1.2213,2932.8,2932.7,4.65962]
[1752326389861,4.1313,2933.1,2933.0,3.71955]
[1752326390059,4.1313,2933.1,2933.0,4.65955]
[1752326390860,3.2078,2933.2,2933.1,0.68163]
[1752326391164,1.2213,2933.4,2933.3,4.65948]
[1752326391565,7.3391,2933.7,2933.6,1.94691]
[1752326391858,1.90284,2933.5,2933.4,1.2654]
[1752326392053,4.1313,2933.5,2933.4,3.71946]
[1752326392254,4.1313,2933.5,2933.4,4.65946]
[1752326393265,3.2078,2933.7,2933.6,1.94691]
[1752326393462,3.2078,2933.7,2933.6,4.65941]
[1752326393661,4.4291,2933.7,2933.6,4.65941]
[1752326394258,5.4208,2933.7,2933.6,4.65941]
[1752326394667,1.2213,2933.4,2933.3,3.0379]
[1752326394867,1.2213,2933.4,2933.3,4.65948]
[1752326394868,4.1313,2933.4,2933.3,4.65948]
[1752326395062,4.81286,2933.4,2933.3,1.2654]
[1752326395369,4.81286,2933.4,2933.3,3.0379]
[1752326395564,1.9183,2933.3,2933.0,1.7725]
[1752326395766,4.1313,2933.1,2933.0,3.0379]
[1752326395971,4.1313,2933.1,2933.0,3.9779]
[1752326396171,4.81293,2933.1,2933.0,3.0379]
[1752326397071,4.1313,2933.1,2933.0,3.9779]
[1752326397261,4.81293,2933.1,2933.0,3.9779]
[1752326397970,4.1313,2933.1,2933.0,3.9779]
[1752326398178,4.81293,2933.1,2933.0,3.9779]
[1752326398380,4.81293,2933.1,2933.0,3.0379]
[1752326398773,4.81293,2933.1,2933.0,1.2654]
[1752326399576,1.70402,2933.2,2932.7,1.7725]
[1752326399781,4.81297,2932.9,2932.8,1.2654]
[1752326399976,0.68174,2932.6,2932.5,0.94]
[1752326400179,4.81304,2932.6,2932.5,27.7549]
[1752326400372,4.81304,2932.6,2932.5,1.2654]
[1752326400580,4.81311,2932.3,2932.2,3.9779]
[1752326401083,4.81311,2932.3,2932.2,3.0379]
[1752326401276,4.81311,2932.3,2931.9,1.62189]
[1752326401277,3.82148,2932.0,2931.9,3.0379]
[1752326401473,4.81318,2932.0,2931.9,1.2654]
[1752326401674,4.1313,2932.0,2931.9,4.65981]
[1752326401878,3.2078,2932.8,2932.3,2.7125]
[1752326402074,1.903,2932.8,2932.7,3.9779]
[1752326402374,1.903,2932.8,2932.7,3.0379]
[1752326402578,0.68179,2932.5,2932.3,2.4543]
[1752326402776,8.02087,2932.5,2932.4,1.2654]
[1752326402978,8.02087,2932.5,2932.2,24.734]
[1752326402979,4.81311,2932.3,2932.2,3.9779]
[1752326403175,4.1313,2932.0,2931.9,27.7709]
[1752326403387,4.81318,2932.0,2931.9,27.7709]
[1752326403588,4.81318,2932.0,2931.9,3.9779]
[1752326403888,4.81318,2932.0,2931.9,1.2654]
[1752326404083,4.81318,2932.0,2931.7,24.47395]
[1752326404084,0.68193,2931.8,2931.7,23.792]
[1752326404287,1.2213,2931.8,2931.7,1.94735]
[1752326404588,4.81323,2931.8,2931.7,3.0379]
[1752326404884,4.1313,2931.8,2931.7,3.0379]
[1752326405085,4.1313,2931.8,2931.7,3.9779]
[1752326405086,4.81323,2931.8,2931.7,3.9779]
[1752326405285,1.9033,2931.5,2931.4,3.9779]
[1752326405486,4.1313,2931.5,2931.4,3.0379]
[1752326405780,4.1313,2931.5,2931.4,3.71992]
[1752326405985,1.2213,2931.5,2931.4,4.65992]
[1752326406183,4.1313,2931.5,2931.4,3.9779]
[1752326406383,1.9183,2931.1,2930.9,1.7725]
[1752326406684,0.6822,2930.7,2930.6,0.94]
[1752326406880,1.6739,2930.7,2930.6,2.7125]
[1752326407080,0.9917,2930.7,2930.6,2.7125]
[1752326407482,1.67389,2930.7,2930.6,2.7125]
[1752326407677,2.18613309,2930.9,2930.1,3.2078]
[1752326407981,2.18613309,2930.9,2930.2,0.94]
[1752326407982,2.91,2930.4,2930.2,0.94]
[1752326408178,2.91,2930.4,2930.3,2.7125]
[1752326408378,4.1995,2930.6,2930.5,2.45473]
[1752326408578,1.9183,2930.8,2930.7,0.68219]
[1752326408778,2.91,2931.1,2930.8,2.7125]
[1752326409083,3.59203,2931.4,2931.1,2.45459]
[1752326409387,3.2078,2931.5,2931.1,1.7725]
[1752326409586,3.2078,2931.5,2930.8,3.2078]
[1752326409587,0.9917,2931.3,2931.2,2.7125]
[1752326409788,2.91,2931.3,2931.2,1.7725]
[1752326410385,3.59205,2931.3,2931.2,1.7725]
[1752326410587,2.91,2931.4,2930.8,1.7725]
[1752326410785,0.9917,2931.0,2930.9,2.45463]
[1752326410979,0.9917,2931.0,2930.9,3.39463]
[1752326411180,0.9917,2931.4,2931.0,0.68211]
[1752326411385,2.91,2931.4,2931.2,0.94]
[1752326411579,3.59203,2931.4,2931.3,1.7725]
[1752326411785,2.91,2931.4,2931.3,2.7125]
[1752326411979,3.2078,2931.5,2931.4,3.39452]
[1752326412485,2.91,2931.8,2931.0,23.822]
[1752326412486,0.9917,2931.8,2931.2,3.2078]
[1752326412684,0.9917,2931.8,2931.7,2.7125]
[1752326412685,1.67363,2931.8,2931.7,2.7125]
[1752326412886,0.9917,2931.8,2931.7,2.7125]
[1752326413280,1.67363,2931.8,2931.7,2.7125]
[1752326413484,3.42103,2931.8,2931.7,2.7125]
[1752326413681,2.7391,2931.8,2931.7,2.7125]
[1752326413887,3.42103,2931.8,2931.7,2.7125]
[1752326414288,3.42103,2931.8,2931.7,1.7725]
[1752326414490,2.7391,2931.8,2931.7,2.45445]
[1752326414690,3.42103,2931.8,2931.7,2.7125]
[1752326414891,2.7391,2931.8,2931.4,3.41021]
[1752326415093,2.7391,2931.7,2931.2,0.68205]
[1752326415284,0.9403,2931.5,2931.1,0.94]
[1752326415485,3.36977,2931.2,2931.1,1.7882]
[1752326415686,0.68212,2931.0,2930.9,0.9097]
[1752326415987,3.36982,2931.0,2930.9,1.7882]
[1752326416390,4.91302,2931.2,2930.7,0.68217]
[1752326416590,0.68216,2930.9,2930.8,2.47036]
[1752326416789,3.36986,2930.9,2930.8,1.7882]
[1752326416990,3.36986,2930.9,2930.8,2.6979]
[1752326417392,0.68221,2930.6,2930.5,2.6979]
[1752326417785,3.36991,2930.6,2930.5,1.7882]
[1752326417990,0.68226,2930.4,2930.3,0.68227]
[1752326418191,3.36996,2930.4,2930.3,1.7882]
[1752326419299,2.6877,2930.4,2930.3,2.47048]
[1752326419489,3.2078,2930.6,2930.5,3.38013]
[1752326420194,4.9552,2931.2,2931.1,0.68208]
[1752326420495,4.9552,2931.2,2931.1,0.9097]
[1752326420695,5.63727,2931.2,2931.1,0.9097]
[1752326421193,6.57757,2931.2,2931.1,0.9097]
[1752326421590,0.6822,2930.7,2930.0,1.70585]
[1752326421899,3.36991,2930.6,2930.5,0.68222]
[1752326422096,3.36991,2930.6,2930.5,0.9097]
[1752326422297,3.36991,2930.6,2930.5,1.59193]
[1752326422488,2.6877,2930.6,2930.2,1.7762]
[1752326422692,1.7474,2930.6,2930.5,1.59193]
[1752326423297,3.36991,2930.6,2930.5,1.59193]
[1752326423498,0.68226,2930.4,2930.2,2.45848]
[1752326423791,1.7474,2930.4,2930.3,4.79978]
[1752326423991,2.42966,2930.4,2930.3,4.1175]
[1752326424200,1.7474,2930.4,2930.3,4.79978]
[1752326424795,1.6224,2931.1,2930.5,1.7762]
[1752326424992,1.70499,2931.6,2930.4,1.70561]
[1752326424993,0.9403,2931.6,2931.3,0.9097]
[1752326425193,3.2078,2931.7,2931.5,0.68198]
[1752326425497,5.63715,2931.7,2931.6,0.9097]
[1752326425703,6.57745,2931.7,2931.6,0.9097]
[1752326425901,6.57745,2931.7,2931.5,0.68199]
[1752326426102,2.6877,2931.6,2931.5,0.68199]
[1752326426303,1.7474,2931.6,2931.5,1.59169]
[1752326426498,1.7474,2931.8,2931.7,0.68195]
[1752326426802,1.7474,2931.8,2931.7,1.59165]
[1752326427201,2.6877,2931.8,2931.7,1.59165]
[1752326427598,3.36963,2931.8,2931.7,1.59165]
[1752326427805,2.6877,2931.8,2931.7,0.68195]
[1752326428099,3.2078,2932.1,2932.0,1.59158]
[1752326428902,6.77438657,2932.1,2932.0,1.59158]
[1752326429106,5.8955,2932.1,2932.0,0.68188]
[1752326429594,3.2078,2932.1,2932.0,3.36778]
[1752326429794,3.2078,2932.5,2931.9,3.2078]
[1752326429994,0.9403,2932.3,2931.9,3.2078]
[1752326430193,3.2078,2932.5,2932.4,0.68179]
[1752326430403,3.2078,2932.8,2932.5,1.59146]
[1752326430597,0.9403,2932.6,2932.5,1.59146]
[1752326430806,2.6877,2932.6,2932.5,1.59146]
[1752326431098,2.6877,2932.6,2932.5,0.9097]
[1752326431099,3.36944,2932.6,2932.5,0.9097]
[1752326431303,0.9403,2932.3,2932.2,1.59153]
[1752326431501,2.6877,2932.3,2932.2,1.59153]
[1752326432399,4.9552,2932.8,2932.3,0.9097]
[1752326432593,4.9552,2932.8,2932.7,0.68172]
[1752326432799,4.9552,2932.8,2932.7,1.59142]
[1752326433200,3.2078,2932.8,2932.7,3.36762]
[1752326433706,0.9403,2933.1,2932.7,2.6859]
[1752326433898,2.6877,2933.0,2932.9,0.68166]
[1752326434104,2.6877,2933.0,2932.9,1.59136]
[1752326434603,1.7474,2933.0,2932.9,1.59136]
[1752326434804,4.9552,2933.2,2933.1,1.59133]
[1752326435000,6.5771,2933.2,2932.9,2.45786]
[1752326435197,2.6877,2933.1,2933.0,0.68165]
[1752326435404,2.6877,2933.1,2933.0,1.59135]
[1752326435604,3.36933,2933.1,2933.0,0.9097]
[1752326435805,0.68164,2933.1,2932.9,0.68167]
[1752326436004,2.6877,2933.1,2932.7,0.9097]
[1752326436311,2.6877,2932.7,2932.6,0.68173]
[1752326436604,1.7474,2932.7,2932.6,3.36763]
[1752326436804,2.6877,2932.7,2932.6,1.59143]
[1752326437204,0.6817,2932.8,2932.5,0.68175]
[1752326437398,0.9403,2932.6,2932.3,5.8937]
[1752326437606,0.68175,2932.6,2932.4,0.68178]
[1752326437806,2.6877,2932.5,2932.4,0.68178]
[1752326437999,2.6877,2932.5,2932.4,1.59148]
[1752326438808,1.7474,2932.5,2932.4,1.59148]
[1752326439209,2.6877,2932.4,2932.0,4.1175]
[1752326439503,1.7474,2932.1,2932.0,4.79938]
[1752326439903,1.7474,2932.1,2932.0,3.36778]
[1752326440811,2.6877,2932.3,2932.2,0.68184]
[1752326441009,2.6877,2932.3,2932.2,1.59154]
[1752326442605,2.6877,2932.3,2932.2,0.68184]
[1752326442907,1.7474,2932.1,2931.7,3.2078]
[1752326443112,0.68193,2931.8,2931.7,3.2078]
[1752326443307,3.49343,2931.8,2931.7,3.88975]
[1752326443508,44.29343,2931.8,2931.7,3.2078]
[1752326443811,44.29343,2931.8,2931.7,3.88975]
[1752326444006,44.29343,2931.8,2931.7,3.2078]
[1752326444207,2.8115,2931.5,2931.4,4.79951]
[1752326445013,2.8115,2931.5,2931.4,3.2078]
[1752326445014,3.4935,2931.5,2931.4,3.2078]
[1752326445208,0.68206,2931.3,2931.1,3.2078]
[1752326445413,1.8712,2931.6,2931.1,3.88988]
[1752326445714,1.70491,2931.7,2931.1,4.80748]
[1752326445715,2.8271,2931.2,2931.1,4.80748]
[1752326446210,1.8712,2931.2,2931.1,6.55238]
[1752326447315,1.63792,2931.5,2931.1,6.55238]
[1752326447316,0.9559,2931.5,2931.4,0.68202]
[1752326447516,0.9559,2931.5,2931.4,1.59962]
[1752326448011,0.682,2931.5,2931.3,0.68203]
[1752326448412,2.8271,2931.4,2931.3,1.59963]
[1752326450411,4.68015,2931.7,2931.6,1.2595]
[1752326451017,4.68015,2931.7,2931.6,1.94148]
[1752326451212,40.8,2931.8,2931.7,2.85905]
[1752326451415,3.2078,2933.6,2932.6,1.7449]
[1752326451614,0.9559,2933.5,2933.4,3.88936]
[1752326451819,40.8,2933.5,2933.4,5.8703]
[1752326452014,40.8,2933.5,2933.4,6.55186]
[1752326453321,40.8,2933.5,2933.4,4.80696]
[1752326453622,40.8,2933.5,2933.4,28.68696]
[1752326454426,40.8,2933.5,2933.4,30.43186]
[1752326455930,3.2078,2934.5,2934.4,0.68133]
[1752326456120,3.2078,2934.5,2934.2,0.68137]
[1752326456121,1.8712,2934.3,2934.2,0.68137]
[1752326456320,1.8712,2934.8,2934.2,2.46407385]
[1752326456519,3.2078,2935.4,2934.9,0.6812]
[1752326456725,3.2078,2935.4,2934.9,4.1254]
[1752326456926,40.8,2935.0,2934.9,4.8066]
[1752326457130,40.8,2935.0,2934.9,5.8703]
[1752326457333,43.6271,2935.0,2934.9,27.0788]
[1752326458023,2.8271,2934.9,2934.6,27.0768]
[1752326458227,0.68122,2934.9,2934.6,27.0768]
[1752326458428,40.8,2935.0,2934.6,27.9944]
[1752326458429,1.8712,2934.7,2934.6,27.9944]
[1752326458924,3.50836,2934.7,2934.6,3.2078]
[1752326459233,2.8271,2934.7,2934.6,27.9914]
[1752326459426,40.8,2935.0,2934.7,2.6625]
[1752326459625,40.8,2935.0,2934.9,4.1254]
[1752326459826,40.8,2935.0,2934.9,4.80661]
[1752326460026,40.8,2935.0,2934.9,6.55151]
[1752326460432,42.6712,2935.0,2934.9,4.80661]
[1752326460628,43.6271,2935.0,2934.6,3.2078]
[1752326460930,1.70315,2934.7,2933.7,1.7449]
[1752326461135,3.88921,2934.1,2933.8,0.68146]
[1752326461323,1.8712,2933.9,2933.8,1.59906]
[1752326461832,0.68139,2934.2,2933.9,0.68144]
[1752326462030,2.8271,2934.1,2933.9,0.68144]
[1752326462231,2.8271,2934.0,2933.8,1.59905]
[1752326462429,41.48145,2933.9,2933.6,24.5725]
[1752326462630,2.8271,2933.7,2933.6,24.5725]
[1752326462926,1.8712,2933.7,2933.6,24.5725]
[1752326463133,1.8712,2933.7,2933.6,25.4901]
[1752326463433,2.8271,2933.7,2933.6,25.49011]
[1752326463630,2.8271,2933.7,2933.5,0.68152]
[1752326463832,2.8271,2933.6,2933.5,23.884]
[1752326464130,2.8271,2933.6,2933.5,24.56553]
[1752326464332,3.50861,2933.6,2933.5,23.884]
[1752326464835,2.8271,2933.6,2933.5,23.884]
[1752326465025,3.50862,2933.6,2933.5,23.874]
[1752326465733,3.50861,2933.6,2933.5,23.874]
[1752326465934,2.8271,2933.6,2933.5,24.55553]
[1752326466137,2.55268,2933.8,2933.7,0.9176]
[1752326466332,40.8,2933.9,2933.5,23.874]
[1752326466637,3.50861,2933.6,2933.5,23.874]
[1752326466933,2.8271,2933.6,2933.5,23.874]
[1752326467132,2.8271,2933.6,2933.5,24.7916]
[1752326467541,2.8271,2933.6,2933.5,25.47313]
[1752326467741,2.8271,2933.6,2933.5,24.7916]
[1752326467941,3.50861,2933.6,2933.5,24.7916]
[1752326468331,3.50861,2933.6,2933.5,23.874]
[1752326468640,3.50861,2933.6,2933.4,3.2078]
[1752326468641,3.50863,2933.5,2933.4,27.0688]
[1752326469642,3.50863,2933.5,2933.4,27.0588]
[1752326469843,3.50863,2933.5,2933.4,23.851]
[1752326471334,2.8271,2933.5,2933.4,24.53256]
[1752326471539,1.8712,2933.5,2933.4,27.19506]
[1752326471741,1.8712,2933.5,2933.4,25.45016]
[1752326472244,1.8712,2933.5,2933.4,27.19506]
[1752326473449,2.8271,2933.5,2933.4,25.45016]
[1752326473644,1.8712,2933.5,2933.4,25.45016]
[1752326473846,1.8712,2933.5,2933.4,27.23336]
[1752326474952,1.8712,2933.5,2933.4,25.45016]
[1752326475246,2.8271,2933.5,2933.4,25.45016]
[1752326475844,1.8712,2933.5,2933.4,27.23336]
[1752326477542,40.8,2933.9,2933.7,0.68147]
[1752326477849,1.64677,2933.8,2933.7,23.798]
[1752326478148,4.84117,2933.8,2933.7,23.798]
[1752326478649,4.84117,2933.8,2933.7,25.77599]
[1752326478848,4.84117,2933.8,2933.7,23.798]
[1752326479748,4.84121,2933.6,2933.5,23.797]
[1752326480147,1.70386,2933.5,2933.1,4.2017]
[1752326480341,4.8413,2933.2,2933.1,3.88943]
[1752326480547,4.8413,2933.2,2933.1,26.9928]
[1752326480746,45.6413,2933.2,2933.1,24.46663]
[1752326481151,44.9597,2933.2,2933.1,24.46663]
[1752326481651,45.6413,2933.2,2933.1,24.46663]
[1752326482053,45.6413,2933.2,2933.1,25.76313]
[1752326482845,44.9597,2933.2,2933.1,25.76313]
[1752326483045,40.8,2933.2,2933.1,28.54023]
[1752326485548,0.9653,2933.7,2933.5,4.0736]
[1752326485855,4.1597,2934.4,2934.3,2.97175]
[1752326486055,44.9597,2934.4,2934.3,26.73775]
[1752326488157,43.9944,2934.4,2934.3,28.52095]
[1752326488752,40.8,2934.4,2934.3,28.52095]
[1752326489459,42.6907,2934.4,2934.3,26.73775]
[1752326489649,43.656,2934.4,2934.3,0.68135]
[1752326489958,1.3037,2934.0,2933.8,3.2078]
[1752326490156,3.1944,2934.0,2933.9,24.46844]
[1752326490558,4.1597,2934.0,2933.9,24.46844]
[1752326490753,1.3037,2933.6,2933.5,3.2078]
[1752326490954,2.856,2933.4,2932.8,3.2078]
[1752326491153,1.70384,2933.5,2932.8,27.0008]
[1752326491353,2.856,2932.9,2932.8,23.793]
[1752326491956,2.856,2932.9,2932.8,24.4747]
[1752326492361,40.8,2933.2,2933.1,0.68163]
[1752326492561,43.656,2933.2,2933.1,0.68163]
[1752326493463,43.656,2933.2,2933.1,1.67553]
[1752326493955,40.8,2933.2,2933.1,6.66653]
[1752326496158,43.656,2933.2,2933.1,3.2078]
[1752326496360,40.8,2933.2,2933.0,0.68164]
[1752326496558,3.53764,2933.1,2932.9,23.804]
[1752326496864,3.53765,2933.0,2932.9,23.804]
[1752326497159,2.856,2933.0,2932.9,24.48567]
[1752326498562,2.856,2933.0,2932.9,25.47957]
[1752326499365,2.856,2933.0,2932.9,24.48567]
[1752326500260,3.53765,2933.0,2932.8,3.88948]
[1752326500466,2.856,2932.9,2932.8,27.67648]
[1752326500661,3.53767,2932.9,2932.8,26.9948]
[1752326501063,2.856,2932.8,2932.6,0.68174]
[1752326501265,0.9653,2932.7,2932.6,0.68174]
[1752326501570,2.856,2932.7,2932.6,0.68174]
[1752326501770,3.53772,2932.7,2932.5,27.67455]
[1752326502064,2.856,2932.6,2932.5,27.67455]
[1752326502261,2.856,2932.6,2932.5,27.68255]
[1752326502562,0.68175,2932.6,2932.5,0.68176]
[1752326502761,2.856,2932.6,2932.2,3.2078]
[1752326502963,3.87619,2932.4,2932.3,0.6818]
[1752326503265,4.84149,2932.4,2932.3,0.6818]
[1752326503461,4.1597,2932.4,2932.3,0.6818]
[1752326503657,4.1597,2932.4,2932.3,2.9722]
[1752326503864,1.7625,2932.9,2932.8,1.6756]
[1752326504064,1.7625,2932.9,2932.8,24.4627]
[1752326504362,43.5278,2932.9,2932.8,24.4627]
[1752326504564,43.5278,2932.9,2932.8,27.6705]
[1752326504858,43.5278,2932.9,2932.8,24.4627]
[1752326507469,43.5278,2932.9,2932.8,25.3952]
[1752326507670,43.5278,2932.9,2932.8,24.4627]
[1752326507961,43.5278,2932.9,2932.8,23.781]
[1752326508168,3.9477,2932.8,2932.7,3.2078]
[1752326508467,3.9477,2932.8,2932.7,3.88952]
[1752326508667,3.9477,2932.8,2932.7,6.07242]
[1752326510168,3.9477,2932.8,2932.7,5.13992]
[1752326510559,3.9477,2932.8,2932.7,6.07242]
[1752326511670,3.9477,2932.8,2932.7,3.88952]
[1752326512565,4.6294,2932.8,2932.7,3.88952]
[1752326512865,3.9477,2932.8,2932.7,3.88952]
[1752326515666,3.9477,2932.8,2932.7,7.83522]
[1752326515968,2.961,2932.8,2932.7,7.83522]
[1752326516673,40.8,2932.9,2932.8,1.9321]
[1752326516867,40.8,2932.9,2932.8,28.3904]
[1752326517068,42.5625,2932.9,2932.8,28.3904]
[1752326517466,43.5492,2932.9,2932.8,28.3904]
[1752326517771,43.5492,2932.9,2932.8,26.6276]
[1752326518675,44.23087,2932.9,2932.8,26.6276]
[1752326519179,43.5492,2932.9,2932.8,2.8646]
[1752326519471,43.5492,2932.9,2932.8,28.3904]
[1752326519676,42.5625,2932.9,2932.8,28.3904]
[1752326520672,43.5492,2932.9,2932.8,2.8646]
[1752326520875,43.5492,2932.9,2932.8,26.6276]
[1752326521776,40.8,2932.9,2932.8,28.3904]
[1752326521975,3.9477,2933.2,2933.1,2.86453]
[1752326522284,3.9477,2933.5,2933.4,2.86446]
[1752326522974,44.7477,2933.5,2933.4,2.86446]
[1752326523776,44.7477,2933.5,2933.3,26.9708]
[1752326523977,1.88013,2933.1,2932.9,0.68166]
[1752326524176,1.1985,2933.1,2933.0,0.68165]
[1752326524378,1.1985,2933.1,2933.0,1.93205]
[1752326524582,4.62933,2933.1,2932.9,24.44366]
[1752326524782,3.9477,2933.0,2932.9,24.44366]
[1752326525380,3.9477,2933.0,2932.9,25.69406]
[1752326525691,4.6294,2932.8,2932.7,3.2078]
[1752326526085,1.88027,2932.5,2932.4,3.04766047]
[1752326526283,3.9477,2932.4,2932.3,3.04766047]
[1752326526474,3.9477,2932.4,2932.3,2.86471]
[1752326526680,3.9477,2932.4,2932.3,1.2504]
[1752326526877,3.9477,2932.4,2932.3,1.93221]
[1752326527078,3.9477,2932.4,2932.3,2.86471]
[1752326527985,3.9477,2932.4,2932.3,4.62751]
[1752326528383,40.8,2932.5,2932.4,4.62749]
[1752326528577,2.961,2932.7,2932.6,1.61424]
[1752326528776,2.961,2932.7,2932.6,29.83444]
[1752326528976,2.961,2932.7,2932.6,31.59724]
[1752326529677,3.9477,2932.7,2932.6,29.83444]
[1752326529884,1.88023,2932.7,2932.4,0.68177]
[1752326530081,3.9477,2932.6,2932.5,0.68177]
[1752326530284,3.9477,2932.6,2932.5,1.93217]
[1752326530487,44.7477,2932.6,2932.5,1.93217]
[1752326530690,44.7477,2932.6,2932.5,6.07247]
[1752326530882,44.7477,2932.6,2932.5,2.86467]
[1752326532292,44.7477,2932.6,2932.5,31.60827]
[1752326532293,40.8,2932.6,2932.5,31.60827]
[1752326532494,2.961,2933.4,2933.3,2.86447]
[1752326532988,43.761,2933.4,2933.3,2.86447]
[1752326533194,44.7477,2933.4,2933.3,2.86447]
[1752326533385,44.7477,2933.4,2933.3,24.46658]
[1752326533586,44.7477,2933.4,2933.2,3.2078]
[1752326533786,3.9878,2933.3,2933.2,26.9878]
[1752326533991,3.9878,2933.3,2933.2,3.8894]
[1752326534190,4.66938,2933.3,2933.1,0.68162]
[1752326534385,2.7893,2933.2,2933.1,0.68162]
[1752326534593,4.65291,2933.2,2933.0,24.46664]
[1752326534787,3.9713,2933.1,2933.0,24.46664]
[1752326534988,2.9846,2933.1,2933.0,0.68164]
[1752326535184,40.8,2933.4,2932.9,3.2078]
[1752326535185,4.65295,2933.0,2932.9,3.2078]
[1752326535390,3.9077,2932.7,2932.6,3.88954]
[1752326535688,3.9077,2932.7,2932.6,27.66754]
[1752326535892,3.9077,2932.7,2932.6,29.74894]
[1752326536592,3.9077,2932.7,2932.6,25.61534]
[1752326536893,3.9077,2932.7,2932.6,26.54114]
[1752326537092,3.9077,2932.7,2932.6,23.778]
[1752326537093,4.58942,2932.7,2932.6,23.778]
[1752326537487,4.58942,2932.7,2932.6,24.45974]
[1752326537887,45.38942,2932.7,2932.6,24.45974]
[1752326538097,3.9077,2932.4,2932.3,27.6586]
[1752326538289,3.9077,2932.4,2932.3,28.8142]
[1752326539089,3.9077,2932.4,2932.3,27.6586]
[1752326539591,41.7231,2932.7,2932.6,1.83734]
[1752326539792,43.5257,2932.7,2932.6,1.83734]
[1752326540997,43.5257,2932.7,2932.6,0.68174]
[1752326541991,43.5257,2932.7,2932.6,2.76314]
[1752326542591,43.5257,2932.7,2932.6,1.83734]
[1752326542988,3.9077,2932.4,2932.3,3.2078]
[1752326543291,3.9077,2932.4,2932.3,3.88961]
[1752326543494,4.58949,2932.4,2932.3,3.88961]
[1752326543692,1.86386,2932.1,2932.0,26.9718]
[1752326543993,1.86386,2932.1,2931.7,0.9258]
[1752326543994,3.9077,2931.8,2931.7,32.78281047]
[1752326544290,3.9077,2931.8,2931.7,31.85701047]
[1752326544497,3.9077,2931.8,2931.7,29.73515]
[1752326545393,2.9846,2931.8,2931.7,31.49185]
[1752326545596,3.2078,2932.3,2932.1,3.59416]
[1752326545597,1.8026,2932.2,2932.1,3.59416]
[1752326545795,44.7077,2932.2,2932.1,7.72776]
[1752326545996,44.7077,2932.2,2932.1,5.97106]
[1752326546290,43.7846,2932.2,2932.1,7.72776]
[1752326546490,1.8026,2932.5,2932.4,1.83739]
[1752326546693,3.9077,2932.7,2932.6,2.76314]
[1752326547095,44.7077,2932.7,2932.6,2.76314]
[1752326547396,43.7846,2932.7,2932.6,2.76314]
[1752326547591,43.7846,2932.7,2932.6,7.72764]
[1752326548186,2.9846,2933.0,2932.9,4.48707]
[1752326548391,1.8026,2933.0,2932.9,28.25307]
[1752326548589,2.9846,2933.0,2932.9,26.52907]
[1752326548895,43.7846,2933.0,2932.9,26.52907]
[1752326549092,44.7077,2933.0,2932.9,26.52907]
[1752326549286,44.7077,2933.0,2932.9,25.60327]
[1752326549493,44.7077,2933.0,2932.9,24.44767]
[1752326549894,44.7077,2933.0,2932.9,0.68167]
[1752326550894,44.7077,2933.0,2932.9,2.76307]
[1752326551193,42.6026,2933.0,2932.9,2.0814]
[1752326551397,43.5257,2933.0,2932.9,0.68167]
[1752326551697,3.9077,2932.9,2932.8,24.44669]
[1752326552699,1.182,2932.7,2932.6,5.04514]
[1752326552902,3.9077,2932.7,2932.6,25.60134]
[1752326553192,3.9077,2932.7,2932.6,23.764]
[1752326553392,4.58942,2932.7,2932.6,23.764]
[1752326553595,3.9077,2932.7,2932.6,24.44574]
[1752326553997,1.182,2932.5,2932.4,0.68177]
[1752326554191,3.9077,2932.5,2932.3,26.9718]
[1752326554397,3.9077,2932.4,2932.3,27.65361]
[1752326554593,4.58949,2932.4,2932.3,3.2078]
[1752326554902,3.9077,2932.0,2931.9,5.04531]
[1752326555103,3.35358467,2932.0,2931.9,28.80931]
[1752326556191,1.8026,2931.9,2931.7,0.9258]
[1752326556396,0.62788467,2932.0,2931.7,0.9258]
[1752326556397,3.9077,2931.8,2931.7,2.76335]
[1752326556599,3.9077,2931.8,2931.7,26.52735]
[1752326556792,44.7077,2931.8,2931.7,25.60155]
[1752326557899,3.9077,2931.4,2931.3,3.88984]
[1752326558095,3.9077,2931.4,2931.3,27.65484]
[1752326558302,3.9077,2931.4,2931.3,28.81044]
[1752326558996,3.9077,2931.4,2931.3,29.73624]
[1752326559895,3.9077,2931.4,2931.3,31.61794]
[1752326561901,3.9077,2931.4,2931.3,28.81044]
[1752326562301,3.9077,2931.4,2931.3,28.81144]